bitfinex-derivatives/quotes_SOLF0:USTF0_20250507
["timestamp","ask_amount","ask_price","bid_price","bid_amount"]
[1746642437744,34.38,146.79,146.75,6.813]
[1746642438069,6.8119,146.78,146.75,6.813]
[1746642438245,34.38,146.79,146.76,6.8128]
[1746642438442,34.38,146.82,146.7,34.38]
[1746642438947,6.8114,146.79,146.7,34.38]
[1746642439544,34.38,146.82,146.7,34.38]
[1746642439744,40.6639,146.85,146.7,34.38]
[1746642439939,38.4937,146.85,146.7,34.38]
[1746642440183,6.8106,146.81,146.77,6.812]
[1746642440548,38.4937,146.85,146.67,6.4491]
[1746642440849,23.57704056,146.81,146.68,34.38]
[1746642441143,6.8135,146.75,146.71,6.8148]
[1746642441344,34.38,146.8,146.68,34.38]
[1746642441942,6.8135,146.75,146.71,6.8149]
[1746642442139,34.38,146.8,146.68,34.38]
[1746642442344,23.57704056,146.78,146.68,34.38]
[1746642442544,6.8138,146.74,146.7,6.8155]
[1746642442947,23.57704056,146.78,146.7,6.8155]
[1746642443475,23.57704056,146.78,146.71,6.8151]
[1746642443651,23.57704056,146.78,146.68,34.38]
[1746642443948,25.61664056,146.78,146.68,34.38]
[1746642444350,6.813,146.76,146.73,6.8141]
[1746642444541,2.1318,146.79,146.68,34.38]
[1746642445548,6.8127,146.77,146.73,6.8139]
[1746642445949,2.1318,146.79,146.72,34.36]
[1746642447052,6.8134,146.75,146.72,34.36]
[1746642447255,6.8134,146.75,146.72,41.1746]
[1746642447554,6.8134,146.75,146.72,34.36]
[1746642447752,6.8134,146.75,146.69,34.36]
[1746642447943,6.8139,146.74,146.71,6.8148]
[1746642448148,2.1318,146.79,146.69,34.36]
[1746642448553,6.8128,146.76,146.69,34.36]
[1746642448796,2.1318,146.79,146.69,34.36]
[1746642448956,23.55277549,146.94,146.75,23.55277549]
[1746642449254,131.20935993,146.99,146.84,23.55277549]
[1746642449448,131.20935993,146.99,146.85,629.4723]
[1746642449449,1.22991773,146.98,146.85,629.4723]
[1746642449648,103.65165993,146.99,146.85,629.4723]
[1746642449874,103.65165993,146.99,146.93,6.8046]
[1746642450045,103.65165993,146.99,146.85,629.4723]
[1746642450046,6.8027,146.98,146.91,34.36]
[1746642450450,94.76945993,146.99,146.91,34.36]
[1746642450851,57.91277549,146.98,146.88,34.36]
[1746642451256,57.91277549,146.98,146.85,629.4723]
[1746642451456,23.55277549,146.95,146.85,636.2809]
[1746642451658,6.8053,146.93,146.85,636.2809]
[1746642451980,34.36,146.94,146.85,627.4319]
[1746642452150,34.36,146.94,146.85,34.36]
[1746642452355,25.63957549,146.93,146.85,34.36]
[1746642452555,25.63957549,146.93,146.82,34.36]
[1746642452755,4.1091,146.92,146.82,34.36]
[1746642452958,6.808,146.87,146.82,34.36]
[1746642453959,6.8082,146.86,146.82,34.36]
[1746642454755,6.8078,146.87,146.82,34.36]
[1746642454956,34.16,146.9,146.82,34.36]
[1746642455200,57.71277549,146.9,146.82,34.36]
[1746642455352,6.8094,146.84,146.82,34.36]
[1746642455648,6.8094,146.84,146.8,4.1493]
[1746642455956,6.8098,146.83,146.8,4.1493]
[1746642456160,57.71277549,146.9,146.8,2.0709]
[1746642456564,57.71277549,146.9,146.79,34.16]
[1746642458259,6.8101,146.82,146.79,34.16]
[1746642458461,57.71277549,146.9,146.79,34.16]
[1746642458861,23.55277549,146.87,146.79,34.16]
[1746642459161,36.2383,146.86,146.75,36.2192]
[1746642459362,6.8113,146.8,146.75,36.2192]
[1746642459758,36.2383,146.86,146.75,36.2192]
[1746642460462,6.8104,146.82,146.77,6.8119]
[1746642460760,36.2383,146.86,146.75,36.2192]
[1746642461584,6.8103,146.82,146.78,6.8118]
[1746642462859,6.8103,146.82,146.79,6.8113]
[1746642463263,6.8097,146.83,146.75,36.2192]
[1746642463465,36.2383,146.86,146.75,36.2192]
[1746642463708,34.16,146.86,146.75,36.2192]
[1746642464166,34.16,146.86,146.8,6.8108]
[1746642464463,6.8094,146.84,146.8,6.8108]
[1746642464664,34.16,146.86,146.79,6.8112]
[1746642464964,6.8098,146.83,146.79,6.8112]
[1746642465166,34.16,146.86,146.8,6.8106]
[1746642465464,6.8088,146.85,146.79,34.16]
[1746642465918,6.8088,146.85,146.81,6.81]
[1746642466163,6.8083,146.86,146.79,34.16]
[1746642466562,36.2401,146.89,146.79,34.16]
[1746642466766,6.809,146.85,146.79,34.16]
[1746642467164,6.809,146.85,146.81,6.8102]
[1746642467361,6.8091,146.84,146.79,34.16]
[1746642467867,6.8091,146.84,146.81,6.8102]
[1746642470070,36.2401,146.89,146.79,34.16]
[1746642470269,14.49377184,146.88,146.79,34.16]
[1746642470662,36.2401,146.89,146.8,6.8108]
[1746642471070,6.8093,146.84,146.8,6.8108]
[1746642471365,6.8093,146.84,146.81,6.8104]
[1746642471566,36.2401,146.89,146.79,34.16]
[1746642472267,6.8085,146.86,146.83,6.8093]
[1746642472566,36.2401,146.89,146.79,34.16]
[1746642472962,6.8091,146.84,146.79,34.16]
[1746642473557,6.8088,146.85,146.79,34.16]
[1746642473867,36.2401,146.89,146.79,34.16]
[1746642474067,36.2401,146.89,146.82,6.81]
[1746642474372,36.2401,146.89,146.79,34.16]
[1746642474562,36.2401,146.89,146.82,6.81]
[1746642474764,6.8086,146.86,146.79,34.16]
[1746642475365,36.2401,146.89,146.82,6.8097]
[1746642475769,36.2401,146.89,146.79,34.16]
[1746642476868,36.2401,146.89,146.8,6.8105]
[1746642477170,36.2401,146.89,146.79,34.16]
[1746642477470,6.8093,146.84,146.81,6.8102]
[1746642477873,36.2401,146.89,146.79,34.16]
[1746642478171,6.8096,146.83,146.79,34.16]
[1746642478468,36.2401,146.89,146.79,34.16]
[1746642478732,36.2401,146.89,146.81,6.8105]
[1746642478872,36.2401,146.89,146.79,34.16]
[1746642479175,6.8097,146.83,146.8,6.8106]
[1746642479675,50.73387184,146.89,146.79,34.16]
[1746642479967,4.1091,146.92,146.79,34.16]
[1746642480172,34.16,146.98,146.83,14.49377184]
[1746642480366,48.65377184,147.01,146.95,6.8039]
[1746642480563,34.16,147.01,146.9,34.16]
[1746642481073,6.8029,146.98,146.93,6.8046]
[1746642481273,6.8029,146.98,146.9,34.16]
[1746642481572,6.8029,146.98,146.94,6.8041]
[1746642482674,6.8031,146.97,146.93,6.8047]
[1746642482976,34.16,147.01,146.9,34.16]
[1746642483174,23.5161836,147.0,146.9,34.16]
[1746642483378,1.22980554,146.99,146.9,34.16]
[1746642483572,1.22980554,146.99,146.87,33.98]
[1746642483776,6.8052,146.93,146.89,6.8065]
[1746642483996,33.98,146.96,146.89,6.8065]
[1746642484371,6.8054,146.92,146.89,6.8065]
[1746642485579,2.0283,146.95,146.87,40.7874]
[1746642485771,33.98,146.96,146.87,33.98]
[1746642485972,6.807,146.89,146.87,33.98]
[1746642486173,6.807,146.89,146.86,6.8079]
[1746642486977,6.8061,146.91,146.87,6.8076]
[1746642487181,23.5161836,146.94,146.84,33.98]
[1746642487473,6.8066,146.9,146.81,33.98]
[1746642487679,33.98,146.92,146.81,33.98]
[1746642487978,6.8068,146.89,146.85,6.8083]
[1746642488474,6.8065,146.9,146.86,6.8078]
[1746642489180,6.8065,146.9,146.81,33.98]
[1746642489381,23.5161836,146.91,146.81,33.98]
[1746642489879,6.8073,146.88,146.85,6.8083]
[1746642490482,6.8078,146.87,146.84,6.8089]
[1746642490677,33.98,146.92,146.81,33.98]
[1746642490880,23.5161836,146.89,146.78,33.98]
[1746642491180,33.98,146.88,146.78,33.98]
[1746642491681,40.7875,146.88,146.85,6.8082]
[1746642491979,33.98,146.88,146.78,33.98]
[1746642492172,33.98,146.88,146.86,6.808]
[1746642492577,40.7876,146.88,146.84,6.8087]
[1746642492874,40.7876,146.88,146.78,33.98]
[1746642493080,33.98,146.88,146.78,33.98]
[1746642493385,33.98,146.88,146.86,6.8081]
[1746642493990,40.7873,146.88,146.86,6.8081]
[1746642494185,40.7873,146.88,146.85,6.8084]
[1746642495485,33.98,146.88,146.86,6.8078]
[1746642495687,33.98,146.88,146.78,33.98]
[1746642496587,40.7874,146.88,146.85,6.8083]
[1746642496777,33.98,146.88,146.78,33.98]
[1746642497790,6.809,146.85,146.82,6.8097]
[1746642497983,33.98,146.88,146.78,33.98]
[1746642498487,6.8086,146.85,146.81,6.8101]
[1746642498785,33.98,146.88,146.78,33.98]
[1746642498979,23.5161836,146.86,146.75,33.98]
[1746642499589,23.5161836,146.86,146.78,6.8117]
[1746642499789,23.5161836,146.86,146.75,33.98]
[1746642500389,6.8107,146.81,146.77,6.812]
[1746642500595,33.98,146.83,146.75,33.98]
[1746642501040,6.8103,146.82,146.75,33.98]
[1746642501293,33.98,146.83,146.75,33.98]
[1746642501497,6.8106,146.81,146.78,6.8118]
[1746642502198,6.8116,146.79,146.76,6.8126]
[1746642502390,6.8116,146.79,146.75,33.98]
[1746642502592,6.8116,146.79,146.73,588.36]
[1746642503293,6.8119,146.78,146.75,6.8132]
[1746642503498,6.8119,146.78,146.72,33.98]
[1746642503998,33.98,146.83,146.75,6.8132]
[1746642504195,14.50439642,146.81,146.72,33.98]
[1746642504390,6.8135,146.75,146.72,40.7945]
[1746642504893,33.98,146.79,146.72,33.98]
[1746642505096,6.813,146.76,146.73,6.8141]
[1746642505500,6.8128,146.77,146.74,6.8136]
[1746642505692,33.98,146.79,146.72,33.98]
[1746642505996,6.8123,146.78,146.73,6.8141]
[1746642506294,33.98,146.79,146.69,33.98]
[1746642506899,6.8128,146.76,146.71,6.8149]
[1746642507098,33.98,146.79,146.69,33.98]
[1746642508202,6.8128,146.76,146.72,6.8146]
[1746642508526,6.8128,146.76,146.69,33.98]
[1746642508702,6.8125,146.77,146.74,6.8136]
[1746642508902,33.98,146.79,146.69,33.98]
[1746642509405,6.8128,146.76,146.73,6.8139]
[1746642510402,6.8128,146.76,146.69,33.98]
[1746642510899,6.8125,146.77,146.74,6.8136]
[1746642511597,6.8128,146.76,146.73,6.8139]
[1746642511902,33.98,146.79,146.69,33.98]
[1746642512205,40.7916,146.79,146.76,6.8127]
[1746642512699,33.98,146.79,146.69,33.98]
[1746642513204,33.98,146.79,146.7,13.6306]
[1746642514005,33.98,146.79,146.77,6.8121]
[1746642514201,6.8111,146.8,146.77,6.8121]
[1746642514998,6.8111,146.8,146.78,6.8118]
[1746642515301,33.82,146.82,146.73,33.82]
[1746642515805,622.34,146.85,146.73,47.4479]
[1746642516194,6.8098,146.83,146.8,6.8107]
[1746642516899,622.34,146.85,146.8,6.8107]
[1746642517108,636.84439642,146.85,146.73,33.82]
[1746642517502,6.8117,146.79,146.73,33.82]
[1746642517999,6.8117,146.79,146.76,6.8126]
[1746642518606,6.8119,146.78,146.76,6.8126]
[1746642519247,33.82,146.81,146.73,33.82]
[1746642519507,33.82,146.81,146.7,33.82]
[1746642519808,6.8125,146.77,146.74,6.8133]
[1746642520104,6.8125,146.77,146.7,33.82]
[1746642520304,6.8125,146.77,146.74,6.8133]
[1746642521204,6.8113,146.8,146.7,33.82]
[1746642521601,33.82,146.81,146.7,33.82]
[1746642521801,6.8121,146.78,146.75,6.8129]
[1746642522108,6.8121,146.78,146.7,33.82]
[1746642522307,6.8121,146.78,146.76,6.8127]
[1746642523302,6.8123,146.77,146.7,33.82]
[1746642523523,14.50439642,146.79,146.7,33.82]
[1746642523707,6.813,146.76,146.73,6.8139]
[1746642525310,6.813,146.76,146.74,6.8136]
[1746642525631,6.8134,146.75,146.7,33.82]
[1746642525809,33.82,146.77,146.7,33.82]
[1746642526006,33.82,146.77,146.67,33.82]
[1746642526512,14.50439642,146.76,146.67,33.82]
[1746642527201,6.8152,146.71,146.68,6.8163]
[1746642527402,14.50439642,146.76,146.65,142.35391519]
[1746642527403,28.13009642,146.76,146.65,142.35391519]
[1746642527611,14.50439642,146.73,146.61,33.82]
[1746642528313,33.82,146.75,146.61,33.82]
[1746642528515,33.82,146.75,146.61,48.32439642]
[1746642528835,6.8148,146.72,146.61,48.32439642]
[1746642529208,33.82,146.75,146.61,48.32439642]
[1746642529617,33.82,146.75,146.61,33.82]
[1746642529804,14.50439642,146.73,146.61,33.82]
[1746642530314,6.8158,146.7,146.66,6.817]
[1746642530718,33.82,146.71,146.66,6.817]
[1746642531028,6.8164,146.69,146.65,6.8177]
[1746642531312,33.82,146.71,146.61,33.82]
[1746642531908,6.8165,146.68,146.61,33.82]
[1746642532113,33.82,146.71,146.61,33.82]
[1746642532311,6.8172,146.67,146.61,33.82]
[1746642532819,6.8172,146.67,146.64,6.8183]
[1746642533015,6.8176,146.66,146.64,6.8183]
[1746642533217,33.82,146.71,146.64,6.8183]
[1746642534232,33.82,146.71,146.63,6.8186]
[1746642534818,33.82,146.71,146.64,6.8182]
[1746642535417,6.8172,146.67,146.64,6.8182]
[1746642535715,33.82,146.71,146.65,6.8179]
[1746642536341,33.82,146.71,146.61,33.82]
[1746642536618,6.8174,146.66,146.61,33.82]
[1746642536820,33.82,146.71,146.61,33.82]
[1746642537319,14.50439642,146.7,146.64,6.8183]
[1746642537824,6.8174,146.67,146.64,6.8183]
[1746642538419,6.8175,146.66,146.63,6.8186]
[1746642538820,14.50439642,146.7,146.61,33.82]
[1746642539026,6.8167,146.68,146.65,6.8175]
[1746642540816,33.82,146.71,146.61,33.82]
[1746642541520,6.8163,146.69,146.66,6.8171]
[1746642543318,33.82,146.71,146.66,6.8171]
[1746642544424,6.8162,146.69,146.66,6.8171]
[1746642545424,6.8172,146.68,146.61,33.82]
[1746642545724,33.82,146.71,146.61,33.82]
[1746642545924,33.82,146.71,146.63,6.819]
[1746642546118,14.50439642,146.7,146.63,6.819]
[1746642546725,6.8182,146.66,146.63,6.819]
[1746642548342,6.8182,146.66,146.64,6.819]
[1746642548822,6.8182,146.66,146.61,33.82]
[1746642549319,14.50439642,146.7,146.61,33.82]
[1746642549726,14.50439642,146.7,146.58,13.6418]
[1746642550225,6.8185,146.66,146.63,6.8192]
[1746642550419,14.50439642,146.7,146.63,6.8192]
[1746642550724,6.8185,146.66,146.63,6.8192]
[1746642550920,14.50439642,146.7,146.63,6.8192]
[1746642551325,6.8184,146.66,146.63,6.8192]
[1746642552225,6.8184,146.66,146.64,6.8189]
[1746642552925,6.8184,146.66,146.63,6.8193]
[1746642553425,6.8186,146.65,146.62,6.8197]
[1746642553725,48.32439642,146.71,146.54,33.68]
[1746642553920,6.8184,146.66,146.63,6.8192]
[1746642557530,6.8184,146.66,146.64,6.819]
[1746642557726,6.8184,146.66,146.56,13.6452]
[1746642558433,6.8184,146.66,146.63,6.8192]
[1746642559632,6.8184,146.66,146.64,6.819]
[1746642559929,9.08286405,146.69,146.64,6.819]
[1746642560530,9.08286405,146.69,146.63,6.8192]
[1746642561029,33.82,146.71,146.59,42.76286405]
[1746642561230,33.82,146.71,146.66,6.8181]
[1746642561732,6.8171,146.69,146.66,6.8181]
[1746642562236,6.8172,146.68,146.65,6.8184]
[1746642562834,6.8169,146.69,146.66,6.818]
[1746642563834,6.8173,146.68,146.66,6.818]
[1746642564134,33.82,146.71,146.66,6.818]
[1746642564436,6.8172,146.68,146.65,6.8181]
[1746642566236,6.8169,146.69,146.66,6.818]
[1746642566935,6.8172,146.68,146.66,6.818]
[1746642567431,33.82,146.71,146.66,6.818]
[1746642567831,33.82,146.71,146.6,13.6418]
[1746642568031,33.82,146.71,146.62,9.08286405]
[1746642568232,33.82,146.71,146.6,13.6418]
[1746642568525,6.8168,146.69,146.6,13.6418]
[1746642569942,6.8168,146.69,146.67,6.8173]
[1746642571042,6.8172,146.68,146.66,6.818]
[1746642571335,33.82,146.71,146.66,6.818]
[1746642571532,33.82,146.71,146.67,6.8174]
[1746642571835,33.82,146.71,146.6,13.6418]
[1746642572039,33.82,146.71,146.69,6.8164]
[1746642572236,33.82,146.71,146.62,9.08286405]
[1746642572439,33.82,146.71,146.62,22.72256405]
[1746642572740,40.636,146.71,146.69,6.8165]
[1746642573041,33.82,146.71,146.69,6.8165]
[1746642574842,33.82,146.71,146.62,22.72256405]
[1746642576343,40.6361,146.71,146.62,22.72256405]
[1746642576745,40.6361,146.71,146.68,6.8168]
[1746642577041,6.8163,146.7,146.62,22.72256405]
[1746642577647,6.8163,146.7,146.68,6.8171]
[1746642579760,40.636,146.71,146.69,6.8167]
[1746642580346,33.82,146.71,146.64,33.48]
[1746642581049,6.8165,146.7,146.68,6.8169]
[1746642583247,33.82,146.71,146.64,33.48]
[1746642583848,6.817,146.69,146.66,6.8177]
[1746642584548,33.82,146.71,146.65,6.8184]
[1746642584786,9.08286405,146.69,146.6,33.48]
[1746642585254,6.8183,146.66,146.6,33.48]
[1746642585551,6.8183,146.66,146.63,6.8191]
[1746642585850,6.8183,146.66,146.6,33.48]
[1746642586149,6.8183,146.66,146.63,6.819]
[1746642586648,9.08286405,146.69,146.6,33.48]
[1746642587249,6.8182,146.66,146.6,33.48]
[1746642587547,9.08286405,146.69,146.6,33.48]
[1746642587849,6.8179,146.67,146.64,6.8186]
[1746642588649,6.8181,146.66,146.64,6.8186]
[1746642588953,9.08286405,146.69,146.64,6.8186]
[1746642589349,6.8178,146.67,146.65,6.8186]
[1746642589550,6.8178,146.67,146.6,33.48]
[1746642589845,6.8181,146.66,146.64,6.8188]
[1746642590240,9.08286405,146.69,146.64,6.8188]
[1746642590652,6.818,146.67,146.64,6.8188]
[1746642590853,9.08286405,146.69,146.64,6.8188]
[1746642591056,9.08286405,146.69,146.6,33.48]
[1746642591283,6.8188,146.65,146.6,33.48]
[1746642591656,6.8188,146.65,146.62,6.8197]
[1746642592656,6.8191,146.64,146.62,6.8197]
[1746642593666,6.8188,146.65,146.62,6.8197]
[1746642595962,33.82,146.71,146.62,6.8197]
[1746642595963,6.8191,146.64,146.62,6.8197]
[1746642596462,6.8198,146.63,146.6,6.8208]
[1746642596662,42.56286405,146.66,146.55,33.48]
[1746642597365,6.8194,146.64,146.61,6.8202]
[1746642598064,6.8194,146.64,146.62,6.82]
[1746642598257,6.8196,146.63,146.55,42.56286405]
[1746642598666,6.8196,146.63,146.6,6.8205]
[1746642599266,6.8192,146.64,146.55,42.56286405]
[1746642599464,42.56286405,146.66,146.55,42.56286405]
[1746642599766,42.56286405,146.66,146.6,6.8207]
[1746642599970,42.56286405,146.66,146.55,42.56286405]
[1746642600262,9.08286405,146.63,146.55,33.48]
[1746642600566,9.08286405,146.63,146.51,42.56286405]
[1746642600770,6.8213,146.6,146.51,42.56286405]
[1746642601068,22.72036405,146.65,146.51,42.56286405]
[1746642601472,6.8214,146.59,146.57,6.8222]
[1746642601669,22.72036405,146.65,146.57,6.8222]
[1746642602268,33.48,146.66,146.54,9.08286405]
[1746642602458,6.8198,146.63,146.54,9.08286405]
[1746642602659,9.08286405,146.64,146.59,6.821]
[1746642602865,9.08286405,146.64,146.53,13.6479]
[1746642603068,6.8199,146.63,146.6,6.8207]
[1746642603570,6.8199,146.63,146.61,6.8203]
[1746642603869,33.48,146.66,146.54,9.08286405]
[1746642604270,33.48,146.66,146.57,9.08286405]
[1746642604564,33.48,146.66,146.57,42.56286405]
[1746642604968,33.48,146.66,146.64,6.8188]
[1746642605165,42.56286405,146.66,146.57,33.48]
[1746642605569,6.8189,146.65,146.62,6.8198]
[1746642605965,42.56286405,146.66,146.57,33.48]
[1746642606573,6.8193,146.64,146.61,6.8201]
[1746642606773,42.56286405,146.66,146.57,33.48]
[1746642607071,6.8207,146.61,146.58,6.8216]
[1746642607474,42.56286405,146.66,146.57,33.48]
[1746642607675,6.8198,146.63,146.57,33.48]
[1746642607875,42.56286405,146.66,146.57,33.48]
[1746642608279,42.56286405,146.66,146.59,6.8211]
[1746642608974,6.8202,146.62,146.59,6.8211]
[1746642609176,9.08286405,146.63,146.58,6.8216]
[1746642609371,9.08286405,146.63,146.53,33.26]
[1746642609673,6.8211,146.6,146.57,6.822]
[1746642610082,6.8211,146.6,146.53,33.26]
[1746642610284,6.8207,146.61,146.58,6.8218]
[1746642610679,9.08286405,146.63,146.53,33.26]
[1746642610880,6.8211,146.6,146.57,6.8221]
[1746642611284,6.8207,146.61,146.58,6.8217]
[1746642611482,9.08286405,146.64,146.53,33.26]
[1746642611883,6.8203,146.62,146.53,33.26]
[1746642612385,6.8197,146.63,146.6,6.8205]
[1746642613184,6.82,146.62,146.6,6.8205]
[1746642614289,6.82,146.62,146.59,6.8211]
[1746642615391,6.8205,146.61,146.59,6.8211]
[1746642617588,6.8205,146.61,146.58,6.8216]
[1746642617781,9.08286405,146.64,146.58,6.8216]
[1746642617980,9.08286405,146.64,146.53,33.26]
[1746642618486,6.8206,146.61,146.53,33.26]
[1746642618786,6.8206,146.61,146.58,6.8216]
[1746642619287,6.8206,146.61,146.59,6.8211]
[1746642620491,6.8206,146.61,146.58,6.8216]
[1746642620791,9.08286405,146.61,146.53,33.26]
[1746642621324,42.36286405,146.61,146.53,33.26]
[1746642621789,6.8221,146.58,146.55,6.8228]
[1746642621993,6.8221,146.58,146.49,33.28]
[1746642621994,9.08286405,146.58,146.49,33.28]
[1746642622403,6.824,146.54,146.51,6.8249]
[1746642622788,9.08286405,146.55,146.49,33.28]
[1746642622988,33.28,146.56,146.46,32.19389061]
[1746642623191,9.08286405,146.51,146.46,32.19389061]
[1746642623390,6.8269,146.48,146.46,32.19389061]
[1746642623588,9.08286405,146.51,146.46,32.19389061]
[1746642623795,33.28,146.5,146.46,32.19389061]
[1746642623986,6.8269,146.47,146.46,32.19389061]
[1746642624193,33.28,146.5,146.46,32.19389061]
[1746642624388,6.8268,146.48,146.46,32.19389061]
[1746642624589,33.28,146.5,146.46,32.19389061]
[1746642625489,33.28,146.5,146.4,8.04847265]
[1746642625693,6.8275,146.46,146.42,6.829]
[1746642625886,6.8275,146.46,146.4,8.04847265]
[1746642626087,40.1059,146.5,146.4,8.04847265]
[1746642626387,33.28,146.5,146.4,8.04847265]
[1746642626622,33.28,146.5,146.42,6.829]
[1746642626886,33.28,146.5,146.4,8.04847265]
[1746642627093,33.28,146.5,146.43,6.8287]
[1746642627393,6.8261,146.49,146.4,8.04847265]
[1746642627592,33.28,146.5,146.4,8.04847265]
[1746642627795,6.8262,146.49,146.42,6.8288]
[1746642627993,33.28,146.5,146.42,6.8288]
[1746642628194,33.28,146.5,146.4,8.04847265]
[1746642628398,6.8272,146.47,146.41,6.8295]
[1746642628744,6.8272,146.47,146.4,8.04847265]
[1746642628891,33.28,146.5,146.4,8.04847265]
[1746642629597,33.28,146.5,146.38,47.85168427]
[1746642629797,33.28,146.5,146.41,14.57168427]
[1746642630097,33.28,146.5,146.38,47.85168427]
[1746642630391,33.28,146.5,146.38,33.28]
[1746642630986,6.827,146.47,146.44,6.8281]
[1746642636301,6.8275,146.46,146.42,6.8288]
[1746642636596,14.57168427,146.48,146.38,33.28]
[1746642636894,6.8272,146.47,146.38,33.28]
[1746642637243,6.8272,146.47,146.38,33.54728]
[1746642637697,6.8272,146.47,146.44,6.8283]
[1746642637997,33.28,146.5,146.38,33.54728]
[1746642638498,40.1058,146.5,146.38,33.54728]
[1746642638686,33.28,146.5,146.38,33.54728]
[1746642638890,6.8266,146.48,146.38,33.54728]
[1746642639598,6.8276,146.46,146.38,33.54728]
[1746642639792,6.8276,146.46,146.43,6.8285]
[1746642640096,33.28,146.5,146.38,33.54728]
[1746642640292,33.28,146.5,146.38,0.26728]
[1746642640293,14.57168427,146.48,146.38,0.26728]
[1746642640797,6.8289,146.43,146.38,0.26728]
[1746642640998,33.14,146.44,146.38,0.26728]
[1746642641392,33.14,146.48,146.39,33.14]
[1746642641691,33.14,146.5,146.39,47.71168427]
[1746642642400,39.9656,146.5,146.39,47.71168427]
[1746642642601,39.9656,146.5,146.47,6.8266]
[1746642642988,39.9656,146.5,146.39,47.71168427]
[1746642643195,33.14,146.5,146.39,47.71168427]
[1746642643703,6.8263,146.49,146.46,6.8274]
[1746642644004,33.14,146.5,146.39,47.71168427]
[1746642644402,33.14,146.5,146.39,33.14]
[1746642644905,6.8274,146.46,146.39,33.14]
[1746642645100,33.14,146.5,146.39,33.14]
[1746642646102,6.8281,146.45,146.42,6.829]
[1746642646907,6.8284,146.44,146.42,6.829]
[1746642647309,14.57168427,146.48,146.41,6.8297]
[1746642647808,14.57168427,146.48,146.38,0.26728]
[1746642647998,14.57168427,146.45,146.38,0.26728]
[1746642648203,33.14,146.44,146.38,0.26728]
[1746642648605,6.8307,146.39,146.38,0.26728]
[1746642650703,6.8304,146.4,146.38,0.26728]
[1746642651104,33.14,146.44,146.38,0.26728]
[1746642651610,33.14,146.44,146.39,6.8304]
[1746642651910,33.14,146.44,146.38,0.26728]
[1746642652150,33.14,146.44,146.4,6.8299]
[1746642652307,33.14,146.44,146.38,0.26728]
[1746642653008,6.8302,146.4,146.38,0.26728]
[1746642653608,33.14,146.44,146.38,0.26728]
[1746642654310,6.8295,146.42,146.39,6.8304]
[1746642654611,33.14,146.44,146.38,0.26728]
[1746642655406,39.9686,146.44,146.41,6.8294]
[1746642655709,33.14,146.44,146.38,0.26728]
[1746642655909,33.14,146.44,146.43,6.8288]
[1746642657014,33.14,146.44,146.42,6.8292]
[1746642657811,39.9686,146.44,146.41,6.8296]
[1746642658011,6.8286,146.44,146.38,0.26728]
[1746642658213,33.16,146.48,146.38,0.26728]
[1746642658404,33.16,146.49,146.38,0.26728]
[1746642658604,6.8277,146.46,146.38,0.26728]
[1746642659213,6.8277,146.46,146.43,6.8287]
[1746642659410,6.8279,146.45,146.43,6.8287]
[1746642659612,33.16,146.49,146.43,6.8287]